fUSD/lending_fUSD_20250929
["ID","MTS","AMOUNT","RATE_DAILY","PERIOD"]
[388448237,1759173034190,-225.0,0.00018035,2]
[388448239,1759173034203,-357.4,0.00018051,2]
[388448241,1759173034213,-474.44399432,0.00018061,2]
[388448243,1759173034224,-385.0,0.000181,2]
[388448245,1759173034234,-484.0,0.000181,2]
[388448247,1759173034244,-5000.0,0.000182,2]
[388448249,1759173034254,-429.98379481,0.000182,2]
[388448251,1759173034264,-375.13607058,0.000182,2]
[388448253,1759173034274,-680.2773,0.00018247,2]
[388448255,1759173034284,-500.0,0.0001827,2]
[388448257,1759173034293,-500.0,0.00018273,2]
[388448259,1759173034303,-500.0,0.00018273,2]
[388448261,1759173034313,-500.0,0.00018273,2]
[388448263,1759173034323,-500.0,0.00018273,2]
[388448265,1759173034332,-500.0,0.00018273,2]
[388448267,1759173034342,-500.0,0.00018273,2]
[388448269,1759173034352,-500.0,0.00018273,2]
[388448271,1759173034361,-500.0,0.00018273,2]
[388448273,1759173034371,-500.0,0.00018273,2]
[388448275,1759173034380,-2838.9,0.00018274,14]
[388448278,1759173034390,-848.16,0.0001829,3]
[388448280,1759173034400,-151.0,0.00018297,2]
[388448282,1759173034410,-822.4139455,0.00018299,2]
[388448284,1759173034421,-502.16883123,0.00018299,2]
[388448286,1759173034430,-1695.3501362,0.00018299,2]
[388448288,1759173034439,-1717.9363899,0.00018299,2]
[388448290,1759173034448,-10000.0,0.00018299,2]
[388448292,1759173034458,-2565.81804,0.00018299,2]
[388448294,1759173034468,-1864.0,0.000183,2]
[388448296,1759173034478,-41435.09124139,0.000183,3]
[388448299,1759173034492,-889.59999934,0.000183,3]
[388448301,1759173034503,-3653.93745374,0.000183,3]
[388448303,1759173034515,-258.87161287,0.000183,3]
[388448306,1759173034528,-459.78471852,0.000183,3]
[388448309,1759173034545,-303827.72020549,0.000183,3]
[388448311,1759173034557,-124748.94290243,0.000183,3]
[388448313,1759173034569,-18481.53773387,0.000183,3]
[388448315,1759173034580,-50485.87449033,0.000183,3]
[388448318,1759173034592,-605.26815439,0.000183,3]
[388448321,1759173034615,-1699.06495938,0.000183,3]
[388448374,1759173038432,-991.50000018,0.000183,3]
[388448546,1759173040264,-298.462,0.000183,3]
[388448553,1759173040318,-424.8418315,0.000183,3]
[388448555,1759173040330,-845.94771148,0.000183,3]
[388448561,1759173040372,-320.28739246,0.000183,3]
[388448573,1759173040482,-5747.41156217,0.000183,3]
[388448575,1759173040495,-299.98288464,0.000183,3]
[388448721,1759173043402,-19324.72679935,0.000183,3]
[388448722,1759173043415,-577.75483458,0.000183,3]
[388448723,1759173043715,-150858.78323745,0.000183,3]
[388448727,1759173046462,-174.88746727,0.000182,2]
[388448728,1759173046473,-416.94807914,0.000183,3]
[388448948,1759173354450,1109.00000831,0.00029041,120]
[388449051,1759173539457,172.11,0.0002554,120]
[388449117,1759173633181,500.0,0.00016601,2]
[388449118,1759173633231,186.54432902,0.00016601,2]
[388449119,1759173633291,500.0,0.00016601,2]
[388449120,1759173633356,500.0,0.00016601,2]
[388449121,1759173633418,500.0,0.00016601,2]
[388449122,1759173633497,500.0,0.00016601,2]
[388449123,1759173633571,631.12292725,0.00016601,2]
[388449124,1759173633634,500.0,0.00016601,2]
[388449125,1759173633683,500.0,0.00016601,2]
[388449126,1759173633765,500.0,0.00016601,2]
[388449127,1759173633830,500.0,0.00016601,2]
[388449128,1759173633885,500.0,0.00016601,2]
[388449129,1759173633957,500.0,0.00016601,2]
[388449130,1759173634058,500.0,0.00016601,2]
[388449131,1759173634117,500.0,0.00016601,2]
[388449132,1759173636240,500.0,0.00016601,2]
[388449154,1759173836346,170.44,0.00013515,2]
[388449155,1759173861502,157.49,8.412e-05,2]
[388449156,1759173861722,157.49,0.00012618,2]
[388449159,1759173919643,-158.51,0.00016602,2]
[388449162,1759174089062,2253.07864969,0.0001439,2]
[388449165,1759174112905,500.58171433,0.000154,2]
[388449168,1759174121906,46240.03829054,0.00015,2]
[388449169,1759174123313,402.26,0.00016515,2]
[388449170,1759174139936,240.38998888,0.00029041,120]
[388449171,1759174167336,200.0,0.00016479,2]
[388449193,1759174233900,-5618.49,0.00016602,2]
[388449194,1759174233910,-1344.16478736,0.00016602,2]
[388449195,1759174233920,-195.0,0.00016602,2]
[388449196,1759174233931,-195.0,0.00016602,2]
[388449197,1759174233941,-150.0,0.00016602,2]
[388449198,1759174233951,-160.11197533,0.00016633,2]
[388449199,1759174233961,-300.0,0.00016643,2]
[388449200,1759174233971,-1200.0,0.00016643,2]
[388449201,1759174233982,-300.0,0.00016643,2]
[388449202,1759174233992,-150.0,0.00016644,2]
[388449203,1759174234003,-150.0,0.00016644,2]
[388449204,1759174234012,-150.0,0.00016644,2]
[388449205,1759174234023,-150.0,0.00016644,2]
[388449206,1759174234032,-150.0,0.00016644,2]
[388449207,1759174234043,-150.0,0.00016644,2]
[388449208,1759174234053,-150.0,0.00016644,2]
[388449209,1759174234062,-150.0,0.00016644,2]
[388449210,1759174234072,-150.0,0.00016644,2]
[388449211,1759174234082,-150.0,0.00016644,2]
[388449212,1759174234092,-150.0,0.00016644,2]
[388449213,1759174234102,-150.0,0.00016644,2]
[388449214,1759174234111,-150.0,0.00016644,2]
[388449215,1759174234121,-150.0,0.00016644,2]
[388449216,1759174234131,-150.0,0.00016644,2]
[388449217,1759174234143,-150.0,0.00016644,2]
[388449218,1759174234154,-150.0,0.00016644,2]
[388449219,1759174234164,-200.0,0.000167,2]
[388449220,1759174234174,-1345.92402467,0.00016805,2]
[388449221,1759174234187,-689.49514611,0.00016805,2]
[388449222,1759174234197,-157.49,0.00016824,2]
[388449223,1759174234207,-250.0,0.00016895,2]
[388449224,1759174234221,-4702.49,0.00016905,2]
[388449225,1759174234231,-322.6107,0.00016936,2]
[388449226,1759174234241,-623.58710448,0.00016936,2]
[388449227,1759174234251,-151.0,0.00016936,2]
[388449228,1759174234261,-599.60298507,0.00016936,2]
[388449229,1759174234271,-239.84119403,0.00016936,2]
[388449230,1759174234282,-1000.0,0.00016966,2]
[388449231,1759174234294,-250.0,0.00017,2]
[388449232,1759174234305,-172.11,0.00017027,2]
[388449233,1759174234315,-496.02,0.00017027,2]
[388449234,1759174234324,-150.0,0.00017106,2]
[388449235,1759174234334,-2751.0,0.00017161,2]
[388449236,1759174234343,-165.76,0.00017161,2]
[388449237,1759174234353,-184.13,0.00017195,2]
[388449238,1759174234363,-402.26,0.00017341,2]
[388449239,1759174234372,-822.36,0.000174,2]
[388449240,1759174234382,-250.0,0.00017406,2]
[388449241,1759174234392,-211.24,0.00017479,2]
[388449242,1759174234402,-151.0,0.00017484,2]
[388449243,1759174234411,-1396.339,0.000175,2]
[388449244,1759174234422,-1178.033,0.000175,2]
[388449245,1759174234432,-424.0,0.000175,2]
[388449246,1759174234442,-6026.56564388,0.000175,2]
[388449247,1759174234451,-544.93,0.00017507,2]
[388449248,1759174234462,-1196.09,0.00017507,2]
[388449249,1759174234471,-824.42,0.00017507,2]
[388449250,1759174234481,-555.31,0.00017507,2]
[388449251,1759174234490,-175.48,0.00017507,2]
[388449252,1759174234499,-175.48,0.00017507,2]
[388449253,1759174234510,-150.0,0.00017568,2]
[388449254,1759174234520,-544.93,0.00017578,2]
[388449255,1759174234529,-195.0,0.00017623,2]
[388449256,1759174234539,-700.0,0.00017635,2]
[388449257,1759174234548,-195.0,0.00017662,2]
[388449258,1759174234559,-2388.88,0.000177,2]
[388449259,1759174234568,-2035.41917078,0.00017723,2]
[388449260,1759174234577,-195.0,0.00017736,2]
[388449261,1759174234586,-200.0,0.00017757,2]
[388449262,1759174234598,-195.0,0.00017764,2]
[388449263,1759174234607,-168.3882901,0.00017764,2]
[388449264,1759174234616,-1628.38,0.00017764,2]
[388449265,1759174234626,-301.73,0.00017778,2]
[388449266,1759174234635,-544.93,0.00017778,2]
[388449267,1759174234644,-2000.0,0.000178,2]
[388449268,1759174234654,-855.98945398,0.00017823,2]
[388449269,1759174234664,-195.0,0.00017857,2]
[388449270,1759174234674,-1002.7532,0.000179,2]
[388449271,1759174234683,-195.0,0.00017906,2]
[388449272,1759174234693,-737.24914447,0.00017947,2]
[388449273,1759174234704,-195.0,0.00017956,2]
[388449274,1759174234714,-151.0,0.00017997,2]
[388449275,1759174234723,-3340.53673906,0.00017999,2]
[388449276,1759174234733,-590.93682694,0.00017999,2]
[388449277,1759174234743,-150.0,0.00018,2]
[388449278,1759174234753,-37988.88787867,0.00018,2]
[388449279,1759174234766,-60381.11890516,0.00018,2]
[388449280,1759174234779,-62100.45001348,0.00018,2]
[388449281,1759174234791,-5735.32502004,0.00018,2]
[388449282,1759174234801,-1172.98211521,0.00018,2]
[388449283,1759174234811,-1614.76243345,0.00018,2]
[388449284,1759174234821,-1000.0,0.00018001,2]
[388449285,1759174234831,-150.0,0.00018031,2]
[388449286,1759174234841,-195.0,0.00018055,2]
[388449287,1759174234851,-474.44399432,0.00018058,2]
[388449288,1759174234861,-402.26,0.00018167,2]
[388449289,1759174234872,-544.66,0.00018179,2]
[388449290,1759174234881,-155.26,0.00018179,2]
[388449291,1759174234891,-180.0,0.00018184,2]
[388449292,1759174234901,-209.0,0.00018184,2]
[388449293,1759174234910,-5883.1762007,0.00018196,2]
[388449294,1759174234920,-157.39872057,0.00018198,2]
[388449295,1759174234930,-5000.0,0.00018199,2]
[388449296,1759174234940,-2117.9167,0.000182,2]
[388449297,1759174234950,-195.0,0.00018221,2]
[388449298,1759174234960,-1000.0,0.00018226,2]
[388449299,1759174234970,-5883.17620062,0.00018261,2]
[388449300,1759174234980,-300.0,0.00018262,2]
[388449301,1759174234990,-195.0,0.00018262,2]
[388449302,1759174235000,-2500.0,0.00018262,2]
[388449303,1759174235009,-2000.0,0.00018262,2]
[388449304,1759174235020,-150.0,0.00018262,2]
[388449305,1759174235030,-250.0,0.00018262,2]
[388449306,1759174235040,-300.0,0.00018262,2]
[388449307,1759174235050,-300.0,0.00018262,2]
[388449308,1759174235061,-195.0,0.00018262,2]
[388449309,1759174235072,-250.0,0.00018262,2]
[388449310,1759174235081,-195.0,0.00018262,2]
[388449311,1759174235091,-150.0,0.00018262,2]
[388449312,1759174235100,-151.09,0.00018262,2]
[388449313,1759174235110,-2000.0,0.00018262,2]
[388449314,1759174235119,-500.0,0.00018273,2]
[388449315,1759174235129,-500.0,0.00018273,2]
[388449316,1759174235139,-500.0,0.00018273,2]
[388449317,1759174235148,-500.0,0.00018273,2]
[388449318,1759174235157,-500.0,0.00018273,2]
[388449319,1759174235167,-500.0,0.00018273,2]
[388449320,1759174235177,-500.0,0.00018273,2]
[388449321,1759174235186,-500.0,0.00018273,2]
[388449322,1759174235196,-267.59816546,0.00018273,2]
[388449323,1759174235208,-500.0,0.00018273,2]
[388449324,1759174235218,-243.18309112,0.00018273,2]
[388449325,1759174235227,-500.0,0.00018273,2]
[388449326,1759174235237,-500.0,0.00018273,2]
[388449327,1759174235248,-500.0,0.00018273,2]
[388449328,1759174235259,-500.0,0.00018273,2]
[388449329,1759174235269,-1680.0,0.00018275,2]
[388449330,1759174235279,-151.0,0.00018293,2]
[388449331,1759174235291,-151.0,0.00018295,2]
[388449332,1759174235301,-246.92128814,0.00018295,2]
[388449333,1759174235311,-195.0,0.00018295,2]
[388449334,1759174235320,-2247.55407022,0.00018296,2]
[388449335,1759174235333,-15541.93050151,0.00018296,2]
[388449336,1759174235355,-2841.28408174,0.00018296,2]
[388449337,1759174235371,-2951.793793,0.00018296,2]
[388449338,1759174235383,-108253.29241078,0.00018296,2]
[388449339,1759174235393,-228047.6270182,0.00018298,2]
[388449340,1759174235402,-151.0,0.00018298,2]
[388449341,1759174235411,-151.0,0.00018298,2]
[388449342,1759174235421,-151.0,0.00018298,2]
[388449343,1759174235430,-151.0,0.00018298,2]
[388449344,1759174235439,-151.0,0.00018298,2]
[388449345,1759174235448,-151.0,0.00018298,2]
[388449346,1759174235458,-151.0,0.00018298,2]
[388449347,1759174235468,-178.287725,0.00018298,2]
[388449348,1759174235477,-178.287725,0.00018298,2]
[388449349,1759174235487,-151.0,0.00018298,2]
[388449350,1759174235497,-178.287725,0.00018298,2]
[388449351,1759174235506,-151.0,0.00018298,2]
[388449352,1759174235516,-178.287725,0.00018298,2]
[388449353,1759174235527,-151.0,0.00018298,2]
[388449354,1759174235536,-151.0,0.00018298,2]
[388449355,1759174235545,-151.0,0.00018298,2]
[388449356,1759174235554,-151.0,0.00018298,2]
[388449357,1759174235565,-151.0,0.00018298,2]
[388449358,1759174235575,-151.0,0.00018298,2]
[388449359,1759174235585,-257.748784,0.00018298,2]
[388449360,1759174235594,-151.0,0.00018298,2]
[388449361,1759174235604,-151.0,0.00018298,2]
[388449362,1759174235614,-151.0,0.00018298,2]
[388449363,1759174235623,-152.835965,0.00018298,2]
[388449364,1759174235633,-151.0,0.00018298,2]
[388449365,1759174235642,-151.0,0.00018298,2]
[388449366,1759174235651,-186.983298,0.00018298,2]
[388449367,1759174235661,-151.0,0.00018298,2]
[388449368,1759174235670,-186.983298,0.00018298,2]
[388449369,1759174235679,-151.0,0.00018298,2]
[388449370,1759174235689,-186.983298,0.00018298,2]
[388449371,1759174235699,-151.0,0.00018298,2]
[388449372,1759174235708,-186.983298,0.00018298,2]
[388449373,1759174235719,-151.0,0.00018298,2]
[388449374,1759174235730,-151.0,0.00018298,2]
[388449375,1759174235740,-151.0,0.00018298,2]
[388449376,1759174235750,-151.0,0.00018298,2]
[388449377,1759174235759,-151.0,0.00018298,2]
[388449378,1759174235770,-367.53097,0.00018298,2]
[388449379,1759174235780,-151.0,0.00018298,2]
[388449380,1759174235789,-367.53097,0.00018298,2]
[388449381,1759174235799,-151.0,0.00018298,2]
[388449382,1759174235808,-367.53097,0.00018298,2]
[388449383,1759174235818,-367.53097,0.00018298,2]
[388449384,1759174235827,-151.0,0.00018298,2]
[388449385,1759174235837,-151.0,0.00018298,2]
[388449386,1759174235846,-167.980544,0.00018298,2]
[388449387,1759174235855,-151.0,0.00018298,2]
[388449388,1759174235865,-167.980544,0.00018298,2]
[388449389,1759174235874,-278.100551,0.00018298,2]
[388449390,1759174235883,-154.793421,0.00018298,2]
[388449391,1759174235893,-167.980544,0.00018298,2]
[388449392,1759174235902,-167.980544,0.00018298,2]
[388449393,1759174235912,-151.0,0.00018298,2]
[388449394,1759174235921,-151.0,0.00018298,2]
[388449395,1759174235931,-2512.811978,0.00018298,2]
[388449396,1759174235940,-151.0,0.00018298,2]
[388449397,1759174235950,-2512.811978,0.00018298,2]
[388449398,1759174235960,-151.0,0.00018298,2]
[388449399,1759174235969,-2512.811978,0.00018298,2]
[388449400,1759174235978,-151.0,0.00018298,2]
[388449401,1759174235987,-151.0,0.00018298,2]
[388449402,1759174235997,-1330.51756119,0.00018298,2]
[388449403,1759174236009,-1182.29441681,0.00018298,2]
[388449404,1759174236020,-151.0,0.00018298,2]
[388449405,1759174236029,-61.23467537,0.00018298,2]
[388449411,1759174237431,-89.76532463,0.00018298,2]
[388449412,1759174237442,-151.0,0.00018298,2]
[388449413,1759174237451,-151.0,0.00018298,2]
[388449414,1759174237460,-151.0,0.00018298,2]
[388449415,1759174237470,-151.0,0.00018298,2]
[388449416,1759174237480,-234.482756,0.00018298,2]
[388449417,1759174237490,-151.0,0.00018298,2]
[388449418,1759174237499,-151.0,0.00018298,2]
[388449419,1759174237508,-378.272316,0.00018298,2]
[388449420,1759174237518,-378.272316,0.00018298,2]
[388449421,1759174237528,-378.272316,0.00018298,2]
[388449422,1759174237539,-378.272316,0.00018298,2]
[388449423,1759174237548,-151.0,0.00018298,2]
[388449424,1759174237558,-151.0,0.00018298,2]
[388449425,1759174237568,-151.0,0.00018298,2]
[388449426,1759174237578,-151.0,0.00018298,2]
[388449427,1759174237587,-151.0,0.00018298,2]
[388449428,1759174237597,-152.829606,0.00018298,2]
[388449429,1759174237606,-151.0,0.00018298,2]
[388449430,1759174237616,-631.403901,0.00018298,2]
[388449431,1759174237626,-152.829606,0.00018298,2]
[388449432,1759174237635,-152.829606,0.00018298,2]
[388449433,1759174237644,-262.861329,0.00018298,2]
[388449434,1759174237654,-152.829606,0.00018298,2]
[388449435,1759174237663,-262.861329,0.00018298,2]
[388449436,1759174237672,-151.0,0.00018298,2]
[388449437,1759174237681,-270.507255,0.00018298,2]
[388449438,1759174237691,-262.861329,0.00018298,2]
[388449439,1759174237701,-151.0,0.00018298,2]
[388449440,1759174237711,-151.0,0.00018298,2]
[388449441,1759174237720,-151.0,0.00018298,2]
[388449442,1759174237729,-262.861329,0.00018298,2]
[388449483,1759174238135,-151.0,0.00018298,2]
[388449486,1759174238160,-151.0,0.00018298,2]
[388449489,1759174238172,-151.0,0.00018298,2]
[388449491,1759174238182,-151.0,0.00018298,2]
[388449493,1759174238193,-296.64352,0.00018298,2]
[388449495,1759174238203,-270.809729,0.00018298,2]
[388449497,1759174238216,-151.0,0.00018298,2]
[388449499,1759174238227,-151.0,0.00018298,2]
[388449501,1759174238242,-151.0,0.00018298,2]
[388449503,1759174238252,-151.0,0.00018298,2]
[388449505,1759174238262,-151.0,0.00018298,2]
[388449507,1759174238272,-151.0,0.00018298,2]
[388449509,1759174238283,-631.403901,0.00018298,2]
[388449511,1759174238295,-261.22533246,0.00018298,2]
[388449513,1759174238310,-370.17856854,0.00018298,2]
[388449515,1759174238320,-631.403901,0.00018298,2]
[388449517,1759174238330,-157.041176,0.00018298,2]
[388449519,1759174238340,-170.015739,0.00018298,2]
[388449521,1759174238351,-372.56061546,0.00018298,2]
[388449523,1759174238363,-3955.81282312,0.00018298,2]
[388449526,1759174238376,-358.08053608,0.00018298,2]
[388449528,1759174238388,-1015.344,0.00018298,2]
[388449531,1759174238408,-400.0,0.00018298,2]
[388449533,1759174238429,-1052.36028634,0.00018298,2]
[388449535,1759174238439,-151.0,0.00018298,2]
[388449538,1759174238450,-1977.50521366,0.00018298,2]
[388449540,1759174238462,-453.38,0.00018298,2]
[388449542,1759174238473,-1715.65534091,0.00018298,2]
[388449546,1759174238502,-391.234621,0.00018298,2]
[388449550,1759174238525,-2616.38308543,0.00018298,2]
[388449552,1759174238535,-2038.5573541,0.00018298,2]
[388449554,1759174238547,-559.1,0.00018298,2]
[388449557,1759174238564,-1148.39902929,0.00018298,2]
[388449559,1759174238577,-3408.10187761,0.00018298,2]
[388449561,1759174238586,-7154.158261,0.00018298,2]
[388449563,1759174238596,-151.0,0.00018298,2]
[388449565,1759174238606,-151.0,0.00018298,2]
[388449567,1759174238616,-279.715811,0.00018298,2]
[388449569,1759174238626,-151.0,0.00018298,2]
[388449571,1759174238635,-151.0,0.00018298,2]
[388449573,1759174238646,-154.282276,0.00018298,2]
[388449575,1759174238655,-151.0,0.00018298,2]
[388449577,1759174238666,-270.916196,0.00018298,2]
[388449579,1759174238676,-151.0,0.00018298,2]
[388449581,1759174238686,-151.0,0.00018298,2]
[388449584,1759174238697,-151.0,0.00018298,2]
[388449586,1759174238708,-270.916196,0.00018298,2]
[388449588,1759174238719,-151.0,0.00018298,2]
[388449590,1759174238729,-151.0,0.00018298,2]
[388449592,1759174238739,-151.0,0.00018298,2]
[388449594,1759174238749,-1495.0,0.00018299,2]
[388449596,1759174238759,-300.0,0.00018299,2]
[388449598,1759174238769,-1834.0529222,0.00018299,2]
[388449680,1759174239481,-151.0,0.00018298,2]
[388449682,1759174239491,-1512.9492205,0.00018299,2]
[388449685,1759174239509,-1941.4,0.00018299,2]
[388449689,1759174239542,-250.29304959,0.00018299,2]
[388449691,1759174239555,-2297.65503448,0.00018299,2]
[388449694,1759174239569,-2163.64977323,0.00018299,2]
[388449696,1759174239582,-151.0,0.00018299,2]
[388449698,1759174239592,-151.0,0.00018299,2]
[388449700,1759174239602,-151.0,0.00018299,2]
[388449702,1759174239612,-151.0,0.00018299,2]
[388449704,1759174239621,-151.0,0.00018299,2]
[388449707,1759174239631,-151.0,0.00018299,2]
[388449709,1759174239642,-151.0,0.00018299,2]
[388449711,1759174239651,-151.0,0.00018299,2]
[388449713,1759174239661,-269.642923,0.00018299,2]
[388449715,1759174239671,-122.63943647,0.00018299,2]
[388449717,1759174239683,-147.00348653,0.00018299,2]
[388449720,1759174239693,-269.642923,0.00018299,2]
[388449722,1759174239703,-108.28626037,0.00018299,2]
[388449725,1759174239723,-161.35666263,0.00018299,2]
[388449727,1759174239733,-103.23659538,0.00018299,2]
[388449740,1759174239835,-47.76340462,0.00018299,2]
[388449742,1759174239845,-262.403758,0.00018299,2]
[388449744,1759174239855,-262.403758,0.00018299,2]
[388449746,1759174239865,-151.0,0.00018299,2]
[388449748,1759174239875,-151.0,0.00018299,2]
[388449750,1759174239886,-262.403758,0.00018299,2]
[388449752,1759174239896,-262.403758,0.00018299,2]
[388449755,1759174239906,-151.0,0.00018299,2]
[388449757,1759174239917,-194.970321,0.00018299,2]
[388449759,1759174239927,-151.667043,0.00018299,2]
[388449761,1759174239936,-914.361732,0.00018299,2]
[388449763,1759174239946,-151.0,0.00018299,2]
[388449765,1759174239956,-914.361732,0.00018299,2]
[388449767,1759174239966,-151.0,0.00018299,2]
[388449770,1759174239976,-914.361732,0.00018299,2]
[388449772,1759174239986,-914.361732,0.00018299,2]
[388449774,1759174239996,-151.0,0.00018299,2]
[388449776,1759174240005,-151.0,0.00018299,2]
[388449778,1759174240015,-437.284942,0.00018299,2]
[388449780,1759174240025,-437.284942,0.00018299,2]
[388449782,1759174240036,-437.284942,0.00018299,2]
[388449784,1759174240045,-437.284942,0.00018299,2]
[388449786,1759174240055,-151.0,0.00018299,2]
[388449789,1759174240065,-151.0,0.00018299,2]
[388449791,1759174240075,-151.0,0.00018299,2]
[388449793,1759174240085,-151.0,0.00018299,2]
[388449795,1759174240095,-151.0,0.00018299,2]
[388449797,1759174240105,-151.0,0.00018299,2]
[388449799,1759174240114,-151.0,0.00018299,2]
[388449801,1759174240124,-153.495817,0.00018299,2]
[388449803,1759174240134,-151.0,0.00018299,2]
[388449805,1759174240144,-151.0,0.00018299,2]
[388449808,1759174240154,-151.0,0.00018299,2]
[388449810,1759174240164,-151.0,0.00018299,2]
[388449812,1759174240174,-151.0,0.00018299,2]
[388449814,1759174240184,-151.0,0.00018299,2]
[388449817,1759174240194,-151.0,0.00018299,2]
[388449819,1759174240215,-151.0,0.00018299,2]
[388449821,1759174240226,-151.0,0.00018299,2]
[388449823,1759174240236,-151.0,0.00018299,2]
[388449826,1759174240247,-151.0,0.00018299,2]
[388449828,1759174240257,-151.0,0.00018299,2]
[388449830,1759174240267,-151.0,0.00018299,2]
[388449832,1759174240278,-215.147978,0.00018299,2]
[388449834,1759174240291,-1351.037325,0.00018299,2]
[388449837,1759174240302,-1351.037325,0.00018299,2]
[388449839,1759174240312,-151.0,0.00018299,2]
[388449841,1759174240322,-715.07811081,0.00018299,2]
[388449844,1759174240345,-635.95921419,0.00018299,2]
[388449847,1759174240355,-151.0,0.00018299,2]
[388449849,1759174240367,-151.0,0.00018299,2]
[388449851,1759174240377,-151.0,0.00018299,2]
[388449853,1759174240387,-151.0,0.00018299,2]
[388449855,1759174240398,-151.0,0.00018299,2]
[388449857,1759174240409,-150.0,0.00018299,2]
[388449859,1759174240419,-151.0,0.00018299,2]
[388449862,1759174240431,-151.0,0.00018299,2]
[388449864,1759174240441,-151.0,0.00018299,2]
[388449866,1759174240452,-151.0,0.00018299,2]
[388449868,1759174240462,-151.0,0.00018299,2]
[388449870,1759174240473,-178.287725,0.00018299,2]
[388449871,1759174240483,-178.287725,0.00018299,2]
[388449872,1759174240494,-151.0,0.00018299,2]
[388449873,1759174240505,-178.287725,0.00018299,2]
[388449874,1759174240515,-178.287725,0.00018299,2]
[388449875,1759174240526,-151.0,0.00018299,2]
[388449876,1759174240535,-151.0,0.00018299,2]
[388449877,1759174240546,-151.0,0.00018299,2]
[388449878,1759174240557,-151.0,0.00018299,2]
[388449879,1759174240568,-151.0,0.00018299,2]
[388449880,1759174240578,-151.0,0.00018299,2]
[388449881,1759174240592,-151.0,0.00018299,2]
[388449882,1759174240603,-151.0,0.00018299,2]
[388449883,1759174240614,-151.0,0.00018299,2]
[388449884,1759174240625,-151.0,0.00018299,2]
[388449885,1759174240636,-151.0,0.00018299,2]
[388449887,1759174240646,-151.0,0.00018299,2]
[388449888,1759174240657,-151.0,0.00018299,2]
[388449890,1759174240668,-151.0,0.00018299,2]
[388449892,1759174240678,-151.0,0.00018299,2]
[388449895,1759174240689,-151.0,0.00018299,2]
[388449897,1759174240699,-151.0,0.00018299,2]
[388449899,1759174240710,-378.272316,0.00018299,2]
[388449901,1759174240721,-378.272316,0.00018299,2]
[388449903,1759174240732,-378.272316,0.00018299,2]
[388449905,1759174240742,-378.272316,0.00018299,2]
[388449907,1759174240753,-151.0,0.00018299,2]
[388449910,1759174240763,-151.0,0.00018299,2]
[388449912,1759174240774,-151.0,0.00018299,2]
[388449914,1759174240785,-151.0,0.00018299,2]
[388449916,1759174240795,-151.0,0.00018299,2]
[388449919,1759174240808,-152.829606,0.00018299,2]
[388449921,1759174240819,-152.829606,0.00018299,2]
[388449923,1759174240830,-631.403901,0.00018299,2]
[388449925,1759174240840,-152.829606,0.00018299,2]
[388449927,1759174240851,-262.861329,0.00018299,2]
[388449929,1759174240863,-152.829606,0.00018299,2]
[388449931,1759174240874,-262.861329,0.00018299,2]
[388449934,1759174240885,-151.0,0.00018299,2]
[388449936,1759174240895,-262.861329,0.00018299,2]
[388449938,1759174240907,-151.0,0.00018299,2]